bitfinex/quotes_SOLUSD_20240814
["timestamp","ask_amount","ask_price","bid_price","bid_amount"]
[1723639773941,50.43,150.72,150.59,0.12549]
[1723639774122,50.43,150.75,150.59,0.12549]
[1723639774446,9.97838142,150.81,150.68,0.12549]
[1723639774631,0.0573933,150.82,150.68,65.89596094]
[1723639775013,0.0573933,150.82,150.7,50.55549]
[1723639775237,0.0573933,150.82,150.76,50.43]
[1723639775548,0.0573933,150.82,150.75,0.12549]
[1723639775755,0.0573933,150.82,150.75,65.50196]
[1723639776122,0.0573933,150.82,150.77,0.12549]
[1723639776341,0.0573933,150.82,150.75,11.6567207]
[1723639776639,0.0573933,150.82,150.74,6.372]
[1723639776841,50.4873933,150.82,150.74,6.372]
[1723639777032,50.4873933,150.82,150.62,16.5591]
[1723639777033,50.43,150.76,150.62,16.5591]
[1723639777414,50.43,150.79,150.62,16.5591]
[1723639777415,50.43,150.7,150.62,16.5591]
[1723639777652,50.43,150.7,150.6,6.4127]
[1723639777952,50.43,150.7,150.53,66.4023]
[1723639777953,50.43,150.67,150.53,15.9723]
[1723639778248,50.43,150.67,150.53,66.4023]
[1723639778951,45.25098,150.66,150.53,15.9723]
[1723639779126,0.12549,150.65,150.53,15.9723]
[1723639779442,45.25098,150.66,150.53,15.9723]
[1723639779643,50.43,150.67,150.53,15.9723]
[1723639780036,50.43,150.7,150.54,51.75716824]
[1723639780239,50.43,150.7,150.55,1.32708008]
[1723639780742,26.58684,150.74,150.57,50.43]
[1723639780951,26.58684,150.74,150.6,50.43]
[1723639781119,26.58684,150.74,150.61,21.82851152]
[1723639781329,26.58684,150.74,150.61,21.70302152]
[1723639781541,50.43,150.76,150.62,0.12549]
[1723639781835,50.43,150.73,150.62,20.0]
[1723639782034,50.43,150.73,150.62,0.12549]
[1723639782239,50.43,150.73,150.62,0.25098]
[1723639782432,50.43,150.76,150.64,0.12549]
[1723639782632,50.43,150.79,150.64,0.12549]
[1723639782633,57.0617,150.79,150.64,0.25098]
[1723639782839,21.326979,150.78,150.66,0.12549]
[1723639783042,21.326979,150.78,150.66,0.50196]
[1723639783240,50.43,150.79,150.66,0.50196]
[1723639783550,70.6128833,150.82,150.69,0.12549]
[1723639783740,70.6128833,150.82,150.69,65.50196]
[1723639784248,50.4873933,150.82,150.69,65.50196]
[1723639784451,50.4873933,150.82,150.71,0.12549]
[1723639784627,50.4873933,150.82,150.71,1.8277652]
[1723639784837,50.4873933,150.82,150.71,0.50196]
[1723639786647,6.90485723,150.81,150.7,50.43]
[1723639786850,6.90485723,150.81,150.71,65.5235166]
[1723639787232,6.90485723,150.81,150.76,50.43]
[1723639787439,6.90485723,150.81,150.73,50.43]
[1723639787440,50.53101162,150.93,150.79,50.43]
[1723639787643,6.90150247,150.89,150.8,20.52640002]
[1723639787843,0.10101162,150.93,150.82,50.43]
[1723639788171,1.2174219,151.03,150.89,50.43]
[1723639788459,1.2174219,151.03,150.92,50.43]
[1723639788744,0.7174219,151.03,150.94,0.12549]
[1723639789445,0.7174219,151.03,150.96,0.12549]
[1723639789654,0.7174219,151.03,150.93,20.12549]
[1723639789832,51.1474219,151.03,150.9,0.12549]
[1723639790037,51.1474219,151.03,150.9,45.25098]
[1723639790341,51.1474219,151.03,150.92,0.12549]
[1723639790528,51.1474219,151.03,150.92,45.25098]
[1723639790727,0.7174219,151.03,150.94,0.12549]
[1723639791258,0.7174219,151.03,150.94,45.50196]
[1723639791550,0.7174219,151.03,150.96,0.12549]
[1723639791748,0.7174219,151.03,150.98,0.12549]
[1723639791974,0.7174219,151.03,150.98,65.25098]
[1723639792162,0.7174219,151.03,150.95,20.12549]
[1723639792565,0.7174219,151.03,150.95,0.12549]
[1723639792778,0.7174219,151.03,150.94,0.25098]
[1723639793067,0.7174219,151.03,150.94,45.12549]
[1723639793370,0.7174219,151.03,150.95,20.25098]
[1723639793547,0.7174219,151.03,150.96,45.25098]
[1723639793748,0.7174219,151.03,150.98,0.12549]
[1723639793982,0.7174219,151.03,150.98,0.48094045]
[1723639794273,0.7174219,151.03,151.0,0.12549]
[1723639794452,9.99,151.1,151.0,56.84179]
[1723639794655,9.99,151.1,151.02,0.12549]
[1723639794873,67.0381,151.1,150.99,15.1037]
[1723639795177,60.42,151.1,150.94,50.43]
[1723639795349,6.90599285,151.09,150.95,20.0]
[1723639795546,13.52459285,151.09,150.95,20.0]
[1723639795951,13.52459285,151.09,150.93,6.2863]
[1723639795952,0.25098,151.08,150.93,6.2863]
[1723639796151,0.12549,151.05,150.93,6.2863]
[1723639796363,0.37647,151.05,150.93,6.2863]
[1723639796565,6.6217,151.02,150.9,15.1037]
[1723639796885,50.43,151.06,150.92,50.43]
[1723639797048,0.25098,151.07,150.92,51.75372494]
[1723639797243,0.25098,151.06,150.92,50.43]
[1723639797450,50.68098,151.06,150.9,8.97580447]
[1723639797752,50.43,151.03,150.9,8.97580447]
[1723639797950,0.25098,151.02,150.9,8.97580447]
[1723639798150,0.25098,151.01,150.86,6.082]
[1723639798450,6.6247,150.95,150.86,6.082]
[1723639798658,0.12549,150.94,150.79,56.6079]
[1723639798852,50.43,150.97,150.82,50.43]
[1723639799265,50.43,151.0,150.85,50.43]
[1723639799483,0.25098,151.01,150.88,50.43]
[1723639799797,50.43,151.03,150.88,50.43]
[1723639799953,16.549,151.07,150.91,50.43]
[1723639799954,50.43,151.06,150.91,50.43]
[1723639800158,57.0499,151.06,150.92,0.12549]
[1723639800361,6.6193,151.08,150.94,50.43]
[1723639800573,6.6194,151.07,150.96,0.12549]
[1723639800762,57.33599285,151.09,150.96,0.12549]
[1723639800964,57.33599285,151.09,150.91,50.43]
[1723639801170,6.6207,151.05,150.92,20.25098]
[1723639801457,6.90599285,151.09,150.94,50.55549]
[1723639801765,6.90599285,151.09,150.98,0.12549]
[1723639801967,6.90599285,151.09,150.98,65.37647]
[1723639802359,6.90599285,151.09,150.99,1.32319857]
[1723639802563,6.90599285,151.09,151.0,50.93196]
[1723639802761,6.90599285,151.09,151.02,0.12549]
[1723639803091,9.99,151.1,151.03,50.43]
[1723639803291,9.99,151.1,151.04,65.50196]
[1723639804201,6.90066858,151.13,151.08,50.43]
[1723639804361,1.2174219,151.25,151.13,0.12549]
[1723639804560,1.2174219,151.25,151.13,20.50196]
[1723639804756,1.2174219,151.25,151.15,50.55549]
[1723639804990,1.2174219,151.25,151.17,0.12549]
[1723639805185,1.2174219,151.25,151.17,0.25098]
[1723639805383,1.2174219,151.25,151.18,0.12549]
[1723639805566,1.2174219,151.25,151.16,65.12549]
[1723639805764,1.2174219,151.25,151.17,0.25098]
[1723639805963,1.2174219,151.25,151.17,50.68098]
[1723639806164,1.2174219,151.25,151.19,0.12549]
[1723639806362,1.2174219,151.25,151.19,0.25098]
[1723639806662,1.2174219,151.25,151.21,0.12549]
[1723639807287,1.2174219,151.25,151.22,0.12549]
[1723639807500,16.6319,151.41,151.23,50.43]
[1723639807501,50.43,151.38,151.23,50.43]
[1723639807789,50.43,151.41,151.27,0.12549]
[1723639808002,2.647599,151.31,151.27,65.37647]
[1723639808302,2.647599,151.31,151.24,0.25098]
[1723639808460,50.43,151.38,151.24,0.25098]
[1723639808661,6.6055,151.39,151.24,0.12549]
[1723639808895,76.901005,151.4,151.24,0.12549]
[1723639809107,50.43,151.4,151.24,20.12549]
[1723639809402,50.43,151.39,151.25,45.37647]
[1723639809582,50.43,151.39,151.27,0.12549]
[1723639809761,6.6049,151.41,151.27,45.37647]
[1723639809965,50.43,151.42,151.28,20.0]
[1723639810162,1.2174219,151.46,151.32,50.43]
[1723639810392,1.2174219,151.46,151.35,50.43]
[1723639810594,1.2174219,151.46,151.36,66.32015517]
[1723639810772,1.2174219,151.46,151.37,0.12549]
[1723639810966,1.2174219,151.46,151.37,1.57093445]
[1723639811267,6.6042,151.42,151.29,50.43]
[1723639811485,6.6049,151.41,151.28,0.12549]
[1723639811798,6.6049,151.41,151.21,22.2434]
[1723639811799,50.43,151.4,151.23,50.43]
[1723639811963,50.43,151.4,151.26,50.43]
[1723639812167,57.034,151.43,151.26,50.43]
[1723639812381,51.6474219,151.46,151.32,50.43]
[1723639812695,6.6029,151.45,151.29,50.43]
[1723639812869,51.6474219,151.46,151.29,50.43]
[1723639813073,1.2174219,151.46,151.33,0.12549]
[1723639813282,6.6033,151.44,151.3,0.12549]
[1723639813482,50.43,151.43,151.3,65.25098]
[1723639813683,50.43,151.43,151.3,20.25098]
[1723639814070,6.6047,151.41,151.26,50.43]
[1723639814383,95.43,151.4,151.23,50.43]
[1723639814587,50.43,151.37,151.23,50.43]
[1723639814907,57.0363,151.37,151.23,50.43]
[1723639815119,6.6081,151.33,151.21,6.4135]
[1723639815403,50.43,151.31,151.21,6.4135]
[1723639815714,50.43,151.34,151.21,6.4135]
[1723639815875,45.50196,151.33,151.21,6.4135]
[1723639816075,50.43,151.31,151.14,72.7507]
[1723639817102,50.43,151.28,151.14,72.7507]
[1723639817328,6.6107,151.27,151.14,6.4316]
[1723639817503,50.43,151.22,151.05,21.7421]
[1723639817834,6.6148,151.18,151.05,6.2225]
[1723639818038,50.43,151.22,151.08,50.43]
[1723639818337,50.43,151.28,151.14,50.43]
[1723639818506,45.12549,151.33,151.14,50.43]
[1723639818507,50.43,151.31,151.14,50.43]
[1723639818706,0.12549,151.3,151.14,50.43]
[1723639819028,50.43,151.28,151.15,1.32231687]
[1723639819233,50.43,151.28,151.13,0.12549]
[1723639819419,50.43,151.28,151.13,20.12549]
[1723639819602,50.43,151.28,151.15,0.12549]
[1723639819802,16.4955,151.35,151.15,0.12549]
[1723639819803,6.89820703,151.34,151.21,0.12549]
[1723639820039,6.89820703,151.34,151.21,1.44693798]
[1723639820330,6.89820703,151.34,151.21,21.44693798]
[1723639820546,50.43,151.38,151.23,50.43]
[1723639820713,6.89415391,151.37,151.24,66.82314584]
[1723639821313,6.89415391,151.37,151.24,65.50196]
[1723639821522,50.43,151.35,151.24,20.0]
[1723639821845,6.89415391,151.37,151.23,0.12549]
[1723639822308,6.89415391,151.37,151.23,20.12549]
[1723639822509,50.43,151.35,151.23,20.0]
[1723639822818,50.43,151.35,151.2,50.43]
[1723639823018,50.43,151.32,151.17,50.43]
[1723639823253,50.43,151.26,151.11,50.43]
[1723639823408,50.43,151.26,151.11,51.75106335]
[1723639824006,0.12549,151.25,151.08,56.5584]
[1723639824315,50.43,151.2,151.08,6.1284]
[1723639824521,0.12549,151.19,151.08,6.1284]
[1723639824734,0.12549,151.19,151.03,15.3838]
[1723639824735,50.43,151.17,151.03,15.3838]
[1723639825311,50.43,151.17,151.01,56.6084]
[1723639825513,50.43,151.23,151.07,50.43]
[1723639825737,6.6136,151.21,151.07,50.43]
[1723639825954,0.12549,151.19,151.04,50.43]
[1723639826123,50.43,151.14,151.01,56.6084]
[1723639826321,0.25098,151.13,151.01,6.1784]
[1723639826810,45.25098,151.13,151.01,6.1784]
[1723639827432,57.0477,151.11,150.96,16.1304]
[1723639827615,50.43,151.11,150.95,56.7736]
[1723639827816,45.25098,151.13,150.98,50.43]
[1723639828009,50.43,151.17,151.01,50.43]
[1723639828347,50.43,151.17,151.04,50.43]
[1723639828909,50.43,151.2,151.07,50.43]
[1723639829141,50.43,151.23,151.1,50.43]
[1723639829319,50.43,151.26,151.12,0.12549]
[1723639829554,50.43,151.29,151.14,0.12549]
[1723639829875,57.0398,151.29,151.14,65.25098]
[1723639830048,6.6108,151.27,151.14,20.0]
[1723639830376,50.43,151.26,151.14,20.0]
[1723639830575,6.6116,151.25,151.12,0.12549]
[1723639830873,57.0412,151.26,151.12,0.25098]
[1723639831078,6.89325135,151.24,151.14,0.12549]
[1723639831242,50.43,151.29,151.14,66.82336607]
[1723639831572,6.89143858,151.28,151.14,66.82336607]
[1723639832156,6.89143858,151.28,151.17,0.12549]
[1723639832353,6.89143858,151.28,151.17,66.82310383]
[1723639832886,9.92776242,151.32,151.17,66.82310383]
[1723639833043,6.88957795,151.31,151.19,50.43]
[1723639833259,6.88957795,151.31,151.2,66.82284169]
[1723639833439,6.88957795,151.31,151.22,0.12549]
[1723639833756,9.92776242,151.33,151.22,0.50196]
[1723639833956,16.81608795,151.34,151.22,0.50196]
[1723639834168,9.92776242,151.33,151.22,0.50196]
[1723639834475,16.81608795,151.34,151.22,0.50196]
[1723639834844,16.81608795,151.34,151.22,0.25098]
[1723639835068,16.81608795,151.34,151.2,65.0]
[1723639835069,23.42378795,151.34,151.2,65.0]
[1723639835252,9.92776242,151.33,151.2,20.0]
[1723639835572,9.92776242,151.31,151.17,20.0]
[1723639835774,9.92776242,151.33,151.21,1.32210766]
[1723639835967,9.92776242,151.32,151.19,50.43]
[1723639836268,9.92776242,151.28,151.16,66.7792]
[1723639836477,50.43,151.29,151.16,16.3492]
[1723639836771,9.92879223,151.28,151.16,16.3492]
[1723639838351,9.92879223,151.28,151.17,0.12549]
[1723639838549,60.35879223,151.26,151.1,56.7736]
[1723639838789,20.12549,151.22,151.03,6.2882]
[1723639839072,57.0454,151.17,151.03,6.2882]
[1723639839263,6.74139,151.16,151.03,6.2882]
[1723639839563,60.35879223,151.17,151.03,6.2882]
[1723639839864,0.25098,151.16,151.03,6.2882]
[1723639840049,60.35879223,151.17,151.03,6.2882]
[1723639840556,50.43,151.2,151.04,50.43]
[1723639840958,50.43,151.2,151.05,0.85083949]
[1723639841469,50.43,151.2,151.06,0.12549]
[1723639841783,50.43,151.2,151.07,0.12549]
[1723639842080,50.43,151.2,151.07,0.37647]
[1723639842286,9.93336302,151.22,151.08,0.97640943]
[1723639842462,50.43,151.23,151.09,0.37647]
[1723639842666,50.43,151.23,151.11,0.12549]
[1723639842986,50.43,151.23,151.11,0.25098]
[1723639843185,9.93336302,151.25,151.13,0.12549]
[1723639843352,50.43,151.26,151.13,0.25098]
[1723639843353,60.36336302,151.26,151.13,0.25098]
[1723639843687,6.6098,151.29,151.15,0.12549]
[1723639843688,9.93336302,151.28,151.15,0.12549]
[1723639843977,57.0398,151.29,151.17,0.12549]
[1723639844183,60.36336302,151.29,151.17,21.69837033]
[1723639844489,15.8254,151.34,151.19,0.12549]
[1723639844490,9.93336302,151.31,151.19,0.12549]
[1723639844687,50.43,151.32,151.19,20.25098]
[1723639844982,6.88796808,151.3,151.2,1.32203342]
[1723639845375,16.81597004,151.3,151.2,1.32203342]
[1723639845579,16.81597004,151.3,151.21,0.12549]
[1723639845885,9.92800196,151.34,151.23,0.12549]
[1723639846051,9.92800196,151.35,151.23,65.50196]
[1723639846484,9.92800196,151.32,151.23,20.0]
[1723639846679,60.35800196,151.32,151.18,0.12549]
[1723639846981,50.43,151.32,151.19,50.43]
[1723639847155,9.92800196,151.34,151.2,20.50196]
[1723639847363,50.43,151.32,151.2,20.25098]
[1723639847762,50.43,151.32,151.2,0.25098]
[1723639847957,50.43,151.29,151.17,20.0]
[1723639848309,50.43,151.29,151.16,6.2831]
[1723639848469,60.35800196,151.32,151.16,6.2831]
[1723639848982,9.92800196,151.3,151.17,1.32131092]
[1723639849372,9.92800196,151.3,151.19,0.12549]
[1723639849561,9.92800196,151.3,151.19,0.25098]
[1723639849758,50.43,151.29,151.19,0.12549]
[1723639849975,50.43,151.29,151.19,20.12549]
[1723639850358,60.35800196,151.29,151.19,20.0]
[1723639850562,60.35800196,151.29,151.16,6.2831]
[1723639850563,66.96780196,151.29,151.16,6.2831]
[1723639850887,50.43,151.23,151.16,6.2831]
[1723639851063,50.43,151.2,151.08,6.0747]
[1723639851669,50.43,151.17,151.08,6.0747]
[1723639852594,50.43,151.17,151.02,7.92509093]
[1723639853908,50.43,151.14,151.02,6.6019]
[1723639854206,50.43,151.11,151.02,6.6019]
[1723639854502,50.43,151.08,150.94,6.5628]
[1723639854883,50.43,151.05,150.94,6.5628]
[1723639855699,50.43,151.08,150.95,20.0]
[1723639856005,50.43,151.08,150.94,6.5628]
[1723639856302,6.89218832,151.07,150.94,6.5628]
[1723639856699,50.43,151.05,150.94,6.5628]
[1723639857382,50.43,151.05,150.89,0.2229836]
[1723639857699,6.89218832,151.07,150.89,0.2229836]
[1723639857700,50.43,150.99,150.89,0.2229836]
[1723639858416,50.43,150.99,150.82,50.43]
[1723639858903,50.43,150.99,150.81,6.1188]
[1723639858904,50.43,150.96,150.81,6.1188]
[1723639859078,50.43,150.93,150.81,6.1188]
[1723639859274,50.43,150.84,150.73,6.0193]
[1723639859512,50.43,150.78,150.63,50.43]
[1723639859696,20.0,150.86,150.66,26.536376]
[1723639859697,50.43,150.75,150.66,26.536376]
[1723639860005,50.43,150.78,150.63,50.43]
[1723639860177,50.43,150.78,150.63,51.75665372]
[1723639860378,50.43,150.81,150.7,1.32603749]
[1723639860574,50.43,150.87,150.71,1.32615624]
[1723639860980,60.37775055,150.9,150.75,50.43]
[1723639861180,50.43,150.9,150.76,1.32553863]
[1723639861418,50.43,150.93,150.77,7.82955071]
[1723639861713,50.43,150.93,150.78,50.43]
[1723639861883,50.43,150.96,150.8,0.12549]
[1723639862211,50.43,150.96,150.8,1.82708438]
[1723639862422,50.43,150.96,150.82,0.12549]
[1723639862706,50.43,150.99,150.82,66.82689074]
[1723639863084,50.43,150.99,150.82,65.50196]
[1723639863804,50.43,150.89,150.77,6.5041]
[1723639864284,50.43,150.96,150.78,50.43]
[1723639864686,50.43,150.96,150.81,50.43]
[1723639864881,50.43,150.99,150.82,1.32507097]
[1723639865104,26.543865,150.98,150.85,0.12549]
[1723639865305,26.543865,150.98,150.85,66.82676744]
[1723639865619,50.43,151.05,150.88,0.12549]
[1723639865821,26.537153,151.03,150.88,66.7008953]
[1723639866110,57.0505,151.05,150.89,0.12549]
[1723639866111,50.43,151.05,150.89,0.12549]
[1723639866298,50.43,151.05,150.9,1.44973976]
[1723639866605,6.89512929,151.04,150.92,0.12549]
[1723639866909,50.43,151.08,150.94,0.12549]
[1723639867151,50.43,151.08,150.94,66.82585881]
[1723639867321,6.89384102,151.07,150.94,65.50196]
[1723639867716,50.43,151.05,150.94,65.50196]
[1723639867947,50.43,151.05,150.94,65.37647]
[1723639868419,6.89384102,151.07,150.95,0.12549]
[1723639868731,6.89384102,151.07,150.96,0.12549]
[1723639868931,50.43,151.05,150.94,59.5978582]
[1723639869141,50.43,151.05,150.94,14.4723682]
[1723639869526,6.89384102,151.07,150.95,45.0]
[1723639869727,50.43,151.12,150.95,45.0]
[1723639870151,6.90136644,151.11,150.95,46.32374911]
[1723639870654,6.90136644,151.11,150.98,0.12549]
[1723639870827,6.90136644,151.11,150.98,20.0]
[1723639871026,50.43,151.05,150.95,45.0]
[1723639871221,50.43,151.08,150.96,20.25098]
[1723639871446,6.90136644,151.11,150.97,45.78592038]
[1723639871447,57.33136644,151.11,150.97,45.78592038]
[1723639871633,57.33136644,151.11,150.98,20.25098]
[1723639871634,50.43,151.11,150.98,20.25098]
[1723639871832,50.43,151.11,150.99,45.0]
[1723639872138,6.8997569,151.1,151.0,20.0]
[1723639872446,26.516014,151.15,151.01,0.12549]
[1723639872447,50.43,151.14,151.01,0.12549]
[1723639872753,57.0467,151.14,151.01,45.25098]
[1723639873062,50.43,151.08,150.91,50.43]
[1723639873243,50.43,151.02,150.88,50.43]
[1723639873839,50.43,151.02,150.85,50.43]
[1723639874157,57.053,150.99,150.83,15.8783]
[1723639874526,50.43,150.93,150.75,15.6165]
[1723639874741,50.43,150.93,150.77,50.43]
[1723639874978,50.43,150.96,150.8,50.43]
[1723639875261,50.43,150.96,150.81,1.32418297]
[1723639875470,50.43,150.96,150.8,50.43]
[1723639875667,50.43,150.96,150.76,20.0]
[1723639875668,50.43,150.93,150.77,50.43]
[1723639875963,50.43,150.93,150.75,15.6165]
[1723639875964,50.43,150.87,150.71,50.43]
[1723639876736,50.43,150.87,150.71,57.032]
[1723639877361,50.43,150.87,150.71,77.032]
[1723639877749,0.12549,150.92,150.77,50.43]
[1723639877947,50.43,150.9,150.78,20.0]
[1723639878148,50.43,150.84,150.71,6.602]
[1723639878464,50.43,150.87,150.71,57.032]
[1723639879037,50.43,150.9,150.74,50.43]
[1723639879341,50.43,150.87,150.71,57.032]
[1723639879736,50.43,150.87,150.71,87.76611734]
[1723639879985,50.43,150.9,150.74,50.43]
[1723639880273,6.625,150.95,150.8,50.43]
[1723639880439,16.5552,151.01,150.8,51.75535888]
[1723639880640,16.5552,151.01,150.81,0.37647]
[1723639880836,16.5552,151.01,150.81,20.37647]
[1723639881042,16.5552,151.01,150.83,0.12549]
[1723639881266,16.5552,151.01,150.83,20.25098]
[1723639881441,50.43,150.93,150.83,20.0]
[1723639881647,50.43,150.9,150.78,0.12549]
[1723639882155,0.12549,150.89,150.74,50.43]
[1723639882345,50.43,150.96,150.74,0.2992663]
[1723639882346,50.43,150.87,150.74,0.2992663]
[1723639882547,50.43,150.96,150.74,0.2992663]
[1723639882548,50.43,150.9,150.74,50.7292663]
[1723639883269,57.33248303,150.9,150.74,50.7292663]
[1723639883579,57.33248303,150.9,150.75,20.12549]
[1723639883743,57.33248303,150.9,150.76,0.12549]
[1723639884144,57.33248303,150.9,150.75,20.12549]
[1723639884771,50.43,150.87,150.74,0.2992663]
[1723639885066,50.43,150.84,150.74,0.2992663]
[1723639885277,57.0599,150.84,150.74,0.2992663]
[1723639885455,50.43,150.81,150.74,0.2992663]
[1723639885773,57.0608,150.81,150.74,0.2992663]
[1723639886349,50.43,150.78,150.74,0.2992663]
[1723639887374,0.12549,150.77,150.74,0.2992663]
[1723639887681,50.43,150.78,150.74,0.2992663]
[1723639888183,0.12549,150.83,150.74,0.2992663]
[1723639888184,50.43,150.81,150.74,0.2992663]
[1723639888872,50.43,150.84,150.74,0.2992663]
[1723639889065,50.43,150.87,150.74,0.2992663]
[1723639889066,50.43,150.87,150.75,0.12549]
[1723639889251,50.43,150.87,150.73,0.12549]
[1723639889446,57.0583,150.87,150.73,0.37647]
[1723639889650,50.43,150.87,150.73,21.70254782]
[1723639889852,57.33248303,150.9,150.74,46.32598009]
[1723639890054,57.33248303,150.9,150.75,20.25098]
[1723639890244,57.0595,150.84,150.75,20.0]
[1723639890457,50.43,150.81,150.73,0.12549]
[1723639890862,50.43,150.81,150.72,0.25098]
[1723639891571,50.43,150.78,150.72,0.25098]
[1723639891784,0.37647,150.77,150.72,0.25098]
[1723639892279,50.43,150.75,150.72,0.25098]
[1723639892853,0.25098,150.74,150.72,0.25098]
[1723639893058,0.25098,150.73,150.72,0.25098]
[1723639893253,0.50196,150.73,150.72,0.25098]
[1723639893482,7.28077051,150.73,150.72,0.25098]
[1723639893976,20.0,150.71,150.57,0.8572044]
[1723639894188,0.12549,150.72,150.57,0.8572044]
[1723639894189,50.43,150.62,150.57,0.8572044]
[1723639894386,0.12549,150.61,150.5,6.4802]
[1723639894548,0.12549,150.61,150.44,41.9102]
[1723639894549,0.37647,150.61,150.44,41.9102]
[1723639894751,0.12549,150.61,150.44,41.9102]
[1723639894973,0.25098,150.61,150.44,41.9102]
[1723639895175,0.12549,150.59,150.44,41.9102]
[1723639895485,50.43,150.65,150.47,50.43]
[1723639895654,0.37647,150.64,150.47,50.43]
[1723639896154,50.43,150.69,150.5,50.43]
[1723639896369,57.0661,150.69,150.5,50.43]
[1723639896688,6.6374,150.64,150.51,45.12549]
[1723639896985,6.6374,150.64,150.52,0.12549]
[1723639897281,6.6374,150.64,150.52,20.25098]
[1723639897450,6.6374,150.64,150.54,0.12549]
[1723639897653,6.6374,150.64,150.54,20.25098]
[1723639897882,6.6374,150.64,150.56,0.12549]
[1723639898265,6.6374,150.64,150.56,20.12549]
[1723639898675,6.6374,150.64,150.57,45.0]
[1723639899380,6.6374,150.64,150.56,20.12549]
[1723639899580,6.6374,150.64,150.55,0.25098]
[1723639901387,0.12549,150.63,150.51,20.0]
[1723639901584,6.6374,150.64,150.51,20.0]
[1723639902181,0.37647,150.63,150.51,20.0]
[1723639903200,0.12549,150.59,150.46,50.43]
[1723639903364,0.37647,150.59,150.46,50.43]
[1723639903689,0.12549,150.58,150.46,50.43]
[1723639903892,6.90342016,150.58,150.46,50.43]
[1723639904071,6.2236,150.62,150.46,50.43]
[1723639904392,0.25098,150.61,150.46,50.43]
[1723639904595,0.25098,150.61,150.47,20.0]
[1723639904596,0.12549,150.61,150.47,20.0]
[1723639904897,0.12549,150.61,150.48,0.25098]
[1723639905190,0.25098,150.61,150.49,0.25098]
[1723639905396,0.25098,150.61,150.5,0.12549]
[1723639905581,0.25098,150.61,150.5,45.12549]
[1723639905785,13.12575682,150.62,150.52,0.12549]
[1723639906091,13.12575682,150.62,150.51,20.0]
[1723639906290,45.25098,150.61,150.47,20.0]
[1723639906467,51.89098,150.61,150.47,20.0]
[1723639906669,6.6401,150.6,150.47,20.0]
[1723639906897,45.25098,150.61,150.47,20.0]
[1723639907272,0.25098,150.6,150.47,20.0]
[1723639907476,13.12575682,150.62,150.48,0.12549]
[1723639907673,0.25098,150.61,150.48,0.25098]
[1723639907979,6.6403,150.6,150.44,50.43]
[1723639908180,45.25098,150.59,150.45,20.0]
[1723639908397,0.12549,150.58,150.45,20.0]
[1723639908585,0.12549,150.6,150.45,20.0]
[1723639908792,0.25098,150.6,150.45,20.0]
[1723639909006,0.12549,150.59,150.45,20.0]
[1723639909174,13.12575682,150.62,150.47,50.43]
[1723639909381,13.12575682,150.62,150.46,45.12549]
[1723639909382,13.12575682,150.62,150.5,50.43]
[1723639909585,6.2236,150.62,150.51,20.37647]
[1723639909802,13.12482165,150.62,150.52,38.9704082]
[1723639910108,13.12482165,150.62,150.53,20.0]
[1723639910284,13.12482165,150.62,150.51,20.0]
[1723639910684,13.12482165,150.62,150.48,20.0]
[1723639911008,50.43,150.6,150.48,20.0]
[1723639911299,45.25098,150.59,150.42,2.00374968]